Cogmind - Beta 14 @@@ ROGUE MODE // 2025.01.08 @ 10:28:40 Player: TPL Result: Destroyed by EX-DEC with AWS/EX-DEC Performance ------------- Evolutions (0) 0 Regions Visited (3) 600 Robots Destroyed (26) 130 Value Destroyed (730) 730 Prototype IDs (3) 60 Alien Tech Used (0) 0 Bonus (300) 300 TOTAL SCORE: 1820 Bonus ------- Aligned with FarCom 300 Cogmind --------- Core Integrity 0/250 Matter 210/300 Energy 100/100 System Corruption 5% Temperature Cool (0) Movement Core (400) Ox7 Location -10/Exiles Parts ------- > --- POWER (1) -------- (None) > --- PROPULSION (2) --- (None) > --- UTILITY (2) ------ Large Storage Unit Signal Interpreter > --- WEAPON (2) ------- Grenade Launcher > --- INVENTORY (15) --- Improved Treads Improved Treads Aluminum Leg Aluminum Leg Structural Scanner Visual Processing Unit Terrain Scanner Light Assault Rifle Signal Generator Peak State ------------ > --- POWER ------------ Ion Engine > --- PROPULSION ------- Improved Treads Improved Treads > --- UTILITY ---------- Medium Storage Unit Signal Interpreter > --- WEAPON ----------- EM Shotgun EM Shotgun > --- INVENTORY -------- Aluminum Leg Aluminum Leg Wheel Small Laser Assault Rifle Assault Rifle EMP Blaster EMP Blaster [Rating: 12] Favorites ----------- Power Light Ion Engine Engine Light Ion Engine Propulsion Aluminum Leg Treads Improved Treads Leg Aluminum Leg Wheel Compact Wheel Utility Signal Interpreter Storage Medium Storage Unit Processor Signal Interpreter Weapon EMP Blaster Energy Gun EM Shotgun Ballistic Gun Light Assault Rifle Launcher EMP Blaster Build | -11 -10 -10 -10 ------- Run | Yrd Mat Min Exi Slots Evolved . | . . . . Power . | . . . . Propulsion . | . . . . Utility . | . . . . Weapon . | . . . . Parts Attached 46 | 7 35 1 3 Power 6 | 2 4 . . Engine 6 | 2 4 . . Core . | . . . . Reactor . | . . . . Propulsion 22 | 2 20 . . Treads 6 | . 6 . . Leg 14 | 2 12 . . Wheel 2 | . 2 . . Hover . | . . . . Flight . | . . . . Utility 3 | . 2 . 1 Device . | . . . . Storage 2 | . 1 . 1 Processor 1 | . 1 . . Hackware . | . . . . Protection . | . . . . Artifact . | . . . . Weapon 15 | 3 9 1 2 Energy Gun 5 | 2 3 . . Energy Cannon . | . . . . Ballistic Gun 4 | 1 2 1 . Ballistic Cannon . | . . . . Launcher 6 | . 4 . 2 Special Weapon . | . . . . Impact Weapon . | . . . . Slashing Weapon . | . . . . Piercing Weapon . | . . . . Special Melee Weapon . | . . . . Unidentified Prototypes . | . . . . Parts Lost 8 | . 3 1 4 Power 2 | . 1 . 1 Propulsion 2 | . . . 2 Utility . | . . . . Weapon 4 | . 2 1 1 Highest Loss Streak 4 | . 1 1 4 To Critical Strikes . | . . . . Average Slot Usage (%) 94 | . 96 93 84 Engine 12 | . 12 14 14 Treads 3 | . 4 . . Leg 15 | . 20 . . Wheel 8 | . 3 28 27 Storage 13 | . 12 14 14 Processor 13 | . 13 14 14 Energy Gun 9 | . 12 . . Ballistic Gun 5 | . 3 5 13 Launcher 10 | . 11 17 . Peak Build Rating 12 | 5 12 10 7 Average Rating 8 | 4 9 8 6 On Entrance 5 | . 5 10 7 Naked Turns . | . . . . Heaviest Build 24 | 8 21 21 24 Greatest Support 46 | 20 46 26 26 Greatest Overweight (x) 1 | . 1 . . Average Overweight (x) . | . . . . Largest Inventory Capacity 15 | 5 10 10 15 Average Capacity 9 | 5 9 10 13 Most Carried 10 | 2 10 10 10 Average Carried 6 | . 6 9 9 Final Capacity 15 | 5 10 10 15 Final Carried 10 | . 9 10 9 Class Distribution -------------------- 100% | Mutant Dominant Class ---------------- Mutant | -10/Materials Mutant | -10/Mines Mutant | -10/Exiles Resources | -11 -10 -10 -10 ----------- Run | Yrd Mat Min Exi Matter Collected 696 | 279 417 . . Remotely . | . . . . Salvage Created 940 | 45 851 32 12 Parts 58 | 3 50 5 . Haulers Intercepted . | . . . . Recyclers Shooed . | . . . . Parts Field Recycled . | . . . . Retrieved Matter . | . . . . Parts Self-Destructed . | . . . . Prevented . | . . . . Kills | -11 -10 -10 -10 ------- Run | Yrd Mat Min Exi Combat Hostiles Destroyed 22 | 1 17 2 2 Guns 13 | 1 12 . . AOE 9 | . 5 2 2 Classes Destroyed 6 | 1 3 1 1 Worker 1 | . 1 . . Builder 2 | . 2 . . Watcher 3 | . 3 . . Swarmer 2 | . . 2 . Grunt 18 | 1 17 . . Assembled 2 | . . . 2 Best Kill Streak 4 | 1 4 2 2 Combat Bots Only 3 | 1 3 2 2 Max Kills in Single Turn 3 | 1 3 2 2 Gunslinging . | . . . . Exploded 2 | . 2 2 2 Melee . | . . . . Uniques/NPCs Destroyed . | . . . . Combat | -11 -10 -10 -10 -------- Run | Yrd Mat Min Exi Hostile Shots Fired 133 | 4 85 9 35 Missed 41 | 2 27 2 10 Damage Taken 1223 | 24 752 69 378 Core 266 | . 115 6 145 Absorbed by Shields . | . . . . Core Remaining (%) 100 | 100 . . . Volleys Fired 42 | 3 35 1 3 Largest 2 | 2 2 1 2 Hottest 90 | 60 90 33 60 Shots Fired 83 | 6 70 1 6 Gun 72 | 6 62 . 4 Cannon . | . . . . Launcher 11 | . 8 1 2 Special . | . . . . Kinetic 30 | 3 23 . 4 Thermal 3 | 3 . . . Explosive 3 | . 1 . 2 Electromagnetic 47 | . 46 1 . Robot Hit Streak 9 | 2 9 . 1 Robot Miss Streak 5 | 1 5 1 3 Penetration Max . | . . . . Secondary Targets . | . . . . Shots Hit Robots 50 | 3 46 . 1 Core Hits 50 | 2 38 2 8 Critical Kills . | . . . . Critical Parts Destroyed . | . . . . Critical Strikes . | . . . . Melee Attacks . | . . . . Impact . | . . . . Slashing . | . . . . Piercing . | . . . . Sneak Attacks . | . . . . Combat Hostiles . | . . . . Follow-up Attacks . | . . . . Damage Inflicted 1362 | 36 1007 52 267 Guns 719 | 36 675 . 8 Cannons . | . . . . Explosions 619 | . 320 40 259 Melee . | . . . . Ramming 24 | . 12 12 . Kinetic 235 | 26 201 . 8 Thermal 82 | 10 51 21 . Explosive 326 | . 67 . 259 Electromagnetic 695 | . 676 19 . Impact . | . . . . Slashing . | . . . . Piercing . | . . . . Highest Corruption 4 | . . 2 4 Average Corruption 2 | . . 2 2 Corruption Purged . | . . . . Corruption Blocked . | . . . . Effects 5 | . . . 5 Message Errors 1 | . . . 1 Matter Fused 1 | . . . 1 Data Loss (minor) 1 | . . . 1 Misfires 2 | . . . 2 Overload Shots . | . . . . Overflow Damage . | . . . . Projectiles . | . . . . Explosions . | . . . . Melee . | . . . . Knockbacks . | . . . . Impact . | . . . . Kinetic . | . . . . Secondary . | . . . . Self-Inflicted Damage 77 | . 34 4 39 Shots 2 | . 1 . 1 Rammed 5 | . 1 4 . Targets Rammed 13 | . 9 4 . Kicked 8 | . 8 . . Crushed . | . . . . Highest Temperature 160 | 6 160 . . Average Temperature 47 | 6 48 . . Received Heat Transfer 444 | 12 432 . . Siege Activations . | . . . . Robots Corrupted . | . . . . Combat Hostiles . | . . . . Parts Fried 1 | . 1 . . Impact Corruptions . | . . . . Robots Melted . | . . . . Combat Hostiles . | . . . . Parts Melted . | . . . . Heat Transferred 175 | 25 100 50 . Parts Sabotaged . | . . . . Parts Stolen . | . . . . Parts Stripped . | . . . . Power Chain Reactions 5 | . 4 1 . Alert | -11 -10 -10 -10 ------- Run | Yrd Mat Min Exi Peak Influence 388 | 20 388 137 . Initial 77 | . 13 77 . Average 151 | 10 172 104 . Maximum Alert Level 1 | . 1 . . Low Security (%) 64 | 100 57 100 . Level 1 35 | . 42 . . Level 2 . | . . . . Level 3 . | . . . . Level 4 . | . . . . Level 5 . | . . . . High Security . | . . . . Max Security . | . . . . Squads Dispatched 6 | . 6 . . Investigation 5 | . 5 . . Extermination . | . . . . Reinforcement 1 | . 1 . . Assault . | . . . . Garrison . | . . . . Intercept . | . . . . Searches Triggered . | . . . . Construction Impeded . | . . . . Haulers Reinforced . | . . . . Active Scanning Responses . | . . . . Cargo Convoy Interrupts . | . . . . Stealth | -11 -10 -10 -10 --------- Run | Yrd Mat Min Exi Distress Signals 1 | . 1 . . Communications Jammed . | . . . . Distress Signals . | . . . . Times Spotted 42 | 1 26 4 11 Peak Tracking Total 14 | 1 3 3 14 Tactical Retreats 3 | . 2 1 . Traps | -11 -10 -10 -10 ------- Run | Yrd Mat Min Exi Traps Triggered . | . . . . Indirectly . | . . . . Trap Hack Attempts . | . . . . Triggered . | . . . . Disarmed . | . . . . Reprogrammed . | . . . . Reused . | . . . . Traps Extracted . | . . . . Installed . | . . . . Triggered . | . . . . Machines | -11 -10 -10 -10 ---------- Run | Yrd Mat Min Exi Machines Disabled . | . . . . Max in Single Turn . | . . . . Machines Repaired . | . . . . Machines Dismantled . | . . . . Machines Sabotaged . | . . . . Overloaded Fab Kills . | . . . . Hacking | -11 -10 -10 -10 --------- Run | Yrd Mat Min Exi Machines Accessed 13 | . 10 . 3 Terminals 7 | . 7 . . Fabricators . | . . . . Repair Stations 1 | . 1 . . Recycling Units 2 | . 2 . . Scanalyzers . | . . . . Garrison Access . | . . . . Total Hacks 64 | . 38 . 26 Successful 41 | . 15 . 26 Failed 22 | . 22 . . Catastrophic 3 | . 3 . . Database Lockouts 1 | . 1 . . Manual . | . . . . Terminals 33 | . 33 . . Fabricators . | . . . . Repair Stations 3 | . 3 . . Recycling Units 2 | . 2 . . Scanalyzers . | . . . . Garrison Access . | . . . . Terminal Hacks 38 | . 12 . 26 Record 30 | . 4 . 26 Prototype ID Bank 2 | . 2 . . Alert Level 1 | . 1 . . Locate Traps 1 | . 1 . . Dispatch Records 1 | . 1 . . Recall Investigation 1 | . 1 . . Hauler Manifests 1 | . 1 . . Registered Components 1 | . 1 . . Fabricator Hacks . | . . . . Repair Station Hacks 1 | . 1 . . Scan Component 1 | . 1 . . Recycling Unit Hacks 2 | . 2 . . Process 2 | . 2 . . Scanalyzer . | . . . . Garrison Access Hacks . | . . . . Unauthorized Hacks . | . . . . Terminals . | . . . . Fabricators . | . . . . Repair Stations . | . . . . Recycling Units . | . . . . Scanalyzers . | . . . . Garrison Access . | . . . . Data Cores Recovered . | . . . . Used . | . . . . Hacking Detections 8 | . 8 . . Full Trace Events 8 | . 8 . . Feedback Events . | . . . . Feedback Blocked . | . . . . Robot Schematics Acquired . | . . . . Robots Built . | . . . . Authchips . | . . . . Time . | . . . . Total Robot Build Rating . | . . . . Part Schematics Acquired . | . . . . Parts Built . | . . . . Authchips . | . . . . Time . | . . . . Total Part Build Rating . | . . . . Parts Repaired . | . . . . Time . | . . . . Parts Recycled . | . . . . Recycled Matter 375 | . 375 . . Retrieved Matter . | . . . . Retrieved Components . | . . . . Parts Scanalyzed . | . . . . Part Schematics Acquired . | . . . . Parts Damaged . | . . . . Bothacking | -11 -10 -10 -10 ------------ Run | Yrd Mat Min Exi Used RIF Installer . | . . . . Robots Hacked . | . . . . Non-combat . | . . . . Combat . | . . . . Robot Hacks Applied . | . . . . Relay Couplers Released . | . . . . Fabnet Peak Effective % . | . . . . Robots Rewired 1 | . 1 . . Allies Hacked . | . . . . Hacks Repelled . | . . . . Allies | -11 -10 -10 -10 -------- Run | Yrd Mat Min Exi Total Allies 1 | . 1 . . Largest Group 1 | . 1 . . Highest-Rated Group 8 | . 8 . . Highest-Rated Ally 8 | . 8 . . Total Orders . | . . . . Ally Attacks 7 | . 7 . . Total Damage 34 | . 34 . . Kills . | . . . . Allies Corrupted . | . . . . Allies Melted . | . . . . Intel | -11 -10 -10 -10 ------- Run | Yrd Mat Min Exi Robot Analysis Total . | . . . . Derelict Logs Recovered 1 | . . 1 . Drone Launches . | . . . . Drone Recoveries . | . . . . Exploration | -11 -10 -10 -10 ------------- Run | Yrd Mat Min Exi Turns Passed 2380 | 206 1689 142 343 Spaces Moved 1710 | 156 1035 148 371 Core 21 | 21 . . . Treads 123 | . 123 . . Legs 813 | 135 678 . . Wheels 753 | . 234 148 371 Hover . | . . . . Flight . | . . . . Fastest Speed 50 | 50 90 90 90 Average Speed 119 | 110 135 90 90 Slowest Speed 190 | 120 190 90 90 Overloaded Moves . | . . . . Propulsion Burnouts . | . . . . Robots Hopped . | . . . . Cave-ins Triggered . | . . . . Exploration Rate (%) 51 | 8 96 35 66 Regions Visited 3 Branch Regions 2 Pre-discovered Areas . | . . . . Known Exits Taken 2 | . 1 1 . Unknown Exits Taken 1 | 1 . . . Scrap Searched . | . . . . Spaces Dug . | . . . . Terrain Destroyed 30 | . 13 5 12 Melee . | . . . . Projectile . | . . . . AOE 30 | . 13 5 12 Terrain Rammed . | . . . . Walls Destroyed . | . . . . Machines Disabled . | . . . . Actions | -11 -10 -10 -10 --------- Run | Yrd Mat Min Exi Total 1966 | 183 1250 155 378 Wait 75 | 10 65 . . Move 1707 | 155 1034 147 371 Hop . | . . . . Pick Up 45 | 4 40 1 . Fast Attach 5 | 4 . 1 . Attach 8 | 2 5 . 1 Detach 1 | 1 . . . Swap 33 | 1 30 . 2 Drop 31 | 3 26 1 1 Fire 42 | 3 35 1 3 Melee . | . . . . Ram 4 | . . 4 . Kick 8 | . 8 . . Crush 1 | . 1 . . Escape Stasis . | . . . . Rewire 6 | . 6 . . Trap . | . . . . Miscellaneous . | . . . . Route ------- -11/Scrapyard -10/Materials (discovered 4 exits: *Mat x3 / *Min) -10/Mines (discovered 2 exits: *Mat / *Exi) -10/Exiles (discovered 1 exit: *Min) History --------- Turn | Location | Event 2 | -11/Scrapyard | Met Revision 17 79 | -11/Scrapyard | Discovered new exit (range 8) 207 | -11/Scrapyard | Entered Materials 305 | -10/Materials | Build established: Mutant 748 | -10/Materials | Discovered new exit (range 15) 1024 | -10/Materials | Identified exit to Materials 1156 | -10/Materials | Discovered exit to Materials (range 9) 1387 | -10/Materials | Discovered new exit (range 15) 1462 | -10/Materials | Central database locked down 1528 | -10/Materials | Identified exit to Mines 1753 | -10/Materials | Discovered exit to Materials (range 5) 1896 | -10/Materials | Entered Mines 1897 | -10/Mines | Met a Derelict testing a Signal Generator 1899 | -10/Mines | Found Signal Generator 1914 | -10/Mines | Met a Derelict bent on vengeance 1956 | -10/Mines | Learned 8 Materials zone layouts 1956 | -10/Mines | Discovered exit to Materials (range 10) 2015 | -10/Mines | Assembled infested the area 2034 | -10/Mines | Discovered new exit (range 5) 2037 | -10/Mines | Identified exit to Exiles 2038 | -10/Mines | Entered Exiles 2057 | -10/Exiles | Discovered new exit (range 14) 2069 | -10/Exiles | Identified exit to Mines 2088 | -10/Exiles | Met 8R-AWN 2106 | -10/Exiles | Met EX-HEX 2185 | -10/Exiles | Met EX-BIN 2200 | -10/Exiles | Aligned with FarCom system 2201 | -10/Exiles | Given EX-Vault access code 2323 | -10/Exiles | Met EX-DEC 2351 | -10/Exiles | Visited The Gauntlet 2354 | -10/Exiles | Attacked by the Exiles 2371 | -10/Exiles | Core integrity fell below 50% 2378 | -10/Exiles | Core integrity fell below 20% 2381 | -10/Exiles | Destroyed by EX-DEC with AWS/EX-DEC Last Messages --------------- that..." 02329_ System corrupted: Component data lost. 02354_ System corrupted: FCS attempts to trigger Lgt. Assault Rifle. 02354_ System corrupted: Lgt. Assault Rifle misfires. 02354_ EXILES: Hostile robot within lab perimeter. Defensive protocols time, folks! 02366_ J5-HVA suffers critical hit (Destroy). 02366_ J5-HVA destroyed. 02371_ W1-DM0 destroyed. 02374_ Machine disabled. 02377_ Wheel destroyed. 02378_ Com. Wheel destroyed. 02379_ Machine disabled. 02380_ Lgt. Ion Engine destroyed. 02380_ as-65335 destroyed. 02380_ as-64902 destroyed. 02380_ Grenade Launcher destroyed. 02381_ EX-BIN: "I just want to science!" Map ----- +----------------------------------------------------+ | ??????????#"""" | | ???????????# " | | ???????????#" " "" " | | ???????????#"""" ""## ##""" " " "" | | ???????????#"" ""#### ######""" """ | | ???????????#" """"##??# #????###""""# | | ???????????#""" """#??## ####????##### | | ???????????## ""##??#! "!#????????? | | ????????????#"" """##???#" !#????????? | | ????????????##""" ##????#" "#????????? | | ?????????????##"""" ##?????#!!""!"#????????? | | ??????????????### c #??????########????????? | | ????????????????##### ##??????????????????????? | | ????????????????????## #???????????????????????? | | ?????????????????????# #???????????????????????? | | ?????????????????????# #???????????????????????? | | ????????????????????## c#???????????????????????? | | ????????????????????# %#???????????????????????? | | ????????????????????# a #???????????????????????? | | ????????????????????# a##??????????????????????? | | ????????????????????# #??????????????????????? | | ????????????????????# a #??????????????????????? | | ????????????????????# % ##?????????????????????? | | ????????????#"""##### ######????????????????? | | ??????????""" """"""c aa """"#????????????????? | | ??????????"" @ "#????????????????? | | ???????? " ""???????????? | | ???????? " " "???????????? | | ???????? " ""????????????? | | ????????? z "" #"" "????????????? | | ?????????""" " """" " """#?"??????????????? | | ???????????##"""########"""######????????????????? | | ????????????" ?????????" "?????????????????????? | | ???????????????????????" """????????????????????? | | ???????????????????????""""""????????????????????? | | ???????????????????????" """?????????????????????? | | ????????????????????????""???????????????????????? | | ?????????????????????????????????????????????????? | | ?????????????????????????????????????????????????? | | ?????????????????????????????????????????????????? | | ?????????????????????????????????????????????????? | | ?????????????????????????????????????????????????? | | | | | | | | | | | | | | | | | +----------------------------------------------------+ Best States ------------- Heat Dissipation 25 Energy Generation 10 Energy Capacity 250 Matter Stores 300 Matter Capacity 300 Sight Range 16 Terrain Scan Density 10 Evasion (%) 55 Recoil Reduction 2 Item Schematics ----------------- None Robot Schematics ------------------ None Fabricated ------------ Nothing Alien Tech Used ----------------- None Achievements -------------- A New Friend Librarian Shopping List Challenges ------------ None Game ------ Seed NuclearIonicShield Manual? 0 Play Time 00:52:50 Cumulative 2.1 hours Start 2025.01.08 @ 09:15:34 End 2025.01.08 @ 10:28:40 Sessions 1 Manual Loads 0 Difficulty Rogue Special Mode None Game No. 2 Rogue 2 Adventurer 0 Explorer 0 Win Type - Total 0 Types 0/0/0/0/0/0/0/0/0 Lore% 3 Gallery% 3 Achievement% 5 Wizard Run 0 Options --------- Layout 1 ASCII 0 Keyboard 0 Movement Numpad Keybinds 0 Fullscreen 2 Font 32/SmallcapsGlow Map View 50x35 Zoom Use 0% Tactical HUD 1 Map Filters NONE Filters NONE Steam 1 RUN: 7bc50ee7-319e-4335-88c1-588f98726d57